Workbook

Sheet 3.2_изм.смета - Базисно-индексн
A2: Терминал по перевалке минеральных удобрений в морском торговом порту Усть-Луга. Береговые объекты терминала
A3: (наименование стройки)
A5: (локальная смета)
A6: на Конструкции металлические, 07.04.042 Конвейерная галерея №3 (код SAP 01.02.011) код ГП 2.1.3
A7: (наименование работ и затрат, наименование объекта)
B8: Основание: | C8: 1632-2021-2.1.3-КМ_0_0_RU_IFC
B9: Сметная стоимость | D9: тыс.руб.
B10: строительных работ | D10: тыс.руб.
B11: Средства на оплату труда | D11: тыс.руб.
B12: Сметная трудоемкость | D12: чел.час
B13: Составлен(а) в текущих (прогнозных) ценах по состоянию на | D13: 1 кв. 2000г.
A16: № п/п | B16: Обоснование | C16: Наименование работ и затрат | D16: Ед. изм. | E16: Кол-во | F16: Общая стоимость в базисных ценах, руб.
F17: Всего | G17: Мат-лы
A19: 1 | B19: 2 | C19: 3 | D19: 4 | E19: 5 | F19: 10 | G19: 13
A21: Раздел 1. Рельсовый путь № 1 | H21: 1.052 | I21: 1.021 | J21: 1.035 | K21: 1.025 | L21: 1.02 | M21: 1.03 | N21: 1.2
A22: 1 | B22: ТЕР09-03-005-02 | C22: Монтаж подкрановых путей: по металлическим подкрановым балкам для рельсов типа КР //вес 83,09 кг./м | D22: 100 м рельса в одну нитку | E22: 7.6949 | F22: 8104454.609 | G22: 143556.8359 | H22: 1.052 | I22: 1.021 | J22: 1.035 | K22: 1.025 | L22: 1.02 | M22: 1.03 | N22: 1.2 | O22: =F22*H22*I22*J22*K22*L22*M22*N22 -> 11642550.59 | P22: =G22*H22*I22*J22*K22*L22*M22*N22 -> 206228.2788
B23: 101-0309 | C23: Канаты пеньковые пропитанные | D23: т | E23: 0,0009 0,0069 | F23: 0 | G23: 0 | H23: 1.052 | I23: 1.021 | J23: 1.035 | K23: 1.025 | L23: 1.02 | M23: 1.03 | N23: 1.2 | O23: =F23*H23*I23*J23*K23*L23*M23*N23 -> 0 | P23: =G23*H23*I23*J23*K23*L23*M23*N23 -> 0
B24: 101-0324 | C24: Кислород технический: газообразный | D24: м3 | E24: 16,58 127,6 | F24: 0 | G24: 0 | H24: 1.052 | I24: 1.021 | J24: 1.035 | K24: 1.025 | L24: 1.02 | M24: 1.03 | N24: 1.2 | O24: =F24*H24*I24*J24*K24*L24*M24*N24 -> 0 | P24: =G24*H24*I24*J24*K24*L24*M24*N24 -> 0
B25: 101-0797 | C25: Проволока горячекатаная в мотках, диаметром 6,3-6,5 мм | D25: т | E25: 0,0002 0,0015 | F25: 0 | G25: 0 | H25: 1.052 | I25: 1.021 | J25: 1.035 | K25: 1.025 | L25: 1.02 | M25: 1.03 | N25: 1.2 | O25: =F25*H25*I25*J25*K25*L25*M25*N25 -> 0 | P25: =G25*H25*I25*J25*K25*L25*M25*N25 -> 0
B26: 101-1515 | C26: Электроды диаметром: 4 мм Э46 | D26: т | E26: 0,1 0,7695 | F26: 0 | G26: 0 | H26: 1.052 | I26: 1.021 | J26: 1.035 | K26: 1.025 | L26: 1.02 | M26: 1.03 | N26: 1.2 | O26: =F26*H26*I26*J26*K26*L26*M26*N26 -> 0 | P26: =G26*H26*I26*J26*K26*L26*M26*N26 -> 0
B27: 101-1805 | C27: Гвозди строительные | D27: т | E27: 0,0008 0,0062 | F27: 0 | G27: 0 | H27: 1.052 | I27: 1.021 | J27: 1.035 | K27: 1.025 | L27: 1.02 | M27: 1.03 | N27: 1.2 | O27: =F27*H27*I27*J27*K27*L27*M27*N27 -> 0 | P27: =G27*H27*I27*J27*K27*L27*M27*N27 -> 0
B28: 101-2278 | C28: Пропан-бутан, смесь техническая | D28: кг | E28: 5 38,47 | F28: 0 | G28: 0 | H28: 1.052 | I28: 1.021 | J28: 1.035 | K28: 1.025 | L28: 1.02 | M28: 1.03 | N28: 1.2 | O28: =F28*H28*I28*J28*K28*L28*M28*N28 -> 0 | P28: =G28*H28*I28*J28*K28*L28*M28*N28 -> 0
B29: 101-2467 | C29: Растворитель марки: Р-4 | D29: т | E29: 0,0005 0,0038 | F29: 0 | G29: 0 | H29: 1.052 | I29: 1.021 | J29: 1.035 | K29: 1.025 | L29: 1.02 | M29: 1.03 | N29: 1.2 | O29: =F29*H29*I29*J29*K29*L29*M29*N29 -> 0 | P29: =G29*H29*I29*J29*K29*L29*M29*N29 -> 0
B30: 102-0023 | C30: Бруски обрезные хвойных пород длиной: 4-6,5 м, шириной 75-150 мм, толщиной 40-75 мм, I сорта | D30: м3 | E30: 0,08 0,6156 | F30: 0 | G30: 0 | H30: 1.052 | I30: 1.021 | J30: 1.035 | K30: 1.025 | L30: 1.02 | M30: 1.03 | N30: 1.2 | O30: =F30*H30*I30*J30*K30*L30*M30*N30 -> 0 | P30: =G30*H30*I30*J30*K30*L30*M30*N30 -> 0
B31: 113-0021 | C31: Грунтовка: ГФ-021 красно-коричневая | D31: т | E31: 0,0026 0,02 | F31: 0 | G31: 0 | H31: 1.052 | I31: 1.021 | J31: 1.035 | K31: 1.025 | L31: 1.02 | M31: 1.03 | N31: 1.2 | O31: =F31*H31*I31*J31*K31*L31*M31*N31 -> 0 | P31: =G31*H31*I31*J31*K31*L31*M31*N31 -> 0
B32: 508-0097 | C32: Канат двойной свивки типа ТК, конструкции 6х19(1+6+12)+1 о.с., оцинкованный из проволок марки В, маркировочная группа: 1770 н/мм2, диаметром 5,5 мм | D32: 10 м | E32: 0,09 0,6925 | F32: 0 | G32: 0 | H32: 1.052 | I32: 1.021 | J32: 1.035 | K32: 1.025 | L32: 1.02 | M32: 1.03 | N32: 1.2 | O32: =F32*H32*I32*J32*K32*L32*M32*N32 -> 0 | P32: =G32*H32*I32*J32*K32*L32*M32*N32 -> 0
A33: 2 * | B33: ТССЦ-202-0017 | C33: Пути подкрановые, марка стали: С 255, крепления и упоры//Рельсовые комплекты | D33: т | H33: 1.052 | I33: 1.021 | J33: 1.035 | K33: 1.025 | L33: 1.02 | M33: 1.03 | N33: 1.2 | O33: =F33*H33*I33*J33*K33*L33*M33*N33 -> 0 | P33: =G33*H33*I33*J33*K33*L33*M33*N33 -> 0
A34: 3 * | B34: ТССЦ-202-0016 | C34: Пути подкрановые, марка стали: С 255, рельсы железнодорожные | D34: т | H34: 1.052 | I34: 1.021 | J34: 1.035 | K34: 1.025 | L34: 1.02 | M34: 1.03 | N34: 1.2 | O34: =F34*H34*I34*J34*K34*L34*M34*N34 -> 0 | P34: =G34*H34*I34*J34*K34*L34*M34*N34 -> 0
A35: Раздел 2. Рельсовый путь № 2 | F35: 0 | G35: 0 | H35: 1.052 | I35: 1.021 | J35: 1.035 | K35: 1.025 | L35: 1.02 | M35: 1.03 | N35: 1.2 | O35: =F35*H35*I35*J35*K35*L35*M35*N35 -> 0 | P35: =G35*H35*I35*J35*K35*L35*M35*N35 -> 0
A36: Раздел 2. Рельсовый путь № 2 | F36: 0 | G36: 0 | H36: 1.052 | I36: 1.021 | J36: 1.035 | K36: 1.025 | L36: 1.02 | M36: 1.03 | N36: 1.2 | O36: =F36*H36*I36*J36*K36*L36*M36*N36 -> 0 | P36: =G36*H36*I36*J36*K36*L36*M36*N36 -> 0
A37: 4 | B37: ТЕР09-03-005-02 | C37: Монтаж подкрановых путей: по металлическим подкрановым балкам для рельсов типа КР //вес 83,09 кг./м | D37: 100 м рельса в одну нитку | E37: 8.0702 | F37: 8499730.531 | G37: 150558.4662 | H37: 1.052 | I37: 1.021 | J37: 1.035 | K37: 1.025 | L37: 1.02 | M37: 1.03 | N37: 1.2 | O37: =F37*H37*I37*J37*K37*L37*M37*N37 -> 12210388.92 | P37: =G37*H37*I37*J37*K37*L37*M37*N37 -> 216286.554
B38: 101-0309 | C38: Канаты пеньковые пропитанные | D38: т | E38: 0,0009 0,0073 | F38: 0 | G38: 0 | H38: 1.052 | I38: 1.021 | J38: 1.035 | K38: 1.025 | L38: 1.02 | M38: 1.03 | N38: 1.2 | O38: =F38*H38*I38*J38*K38*L38*M38*N38 -> 0 | P38: =G38*H38*I38*J38*K38*L38*M38*N38 -> 0
B39: 101-0324 | C39: Кислород технический: газообразный | D39: м3 | E39: 16,58 133,8 | F39: 0 | G39: 0 | H39: 1.052 | I39: 1.021 | J39: 1.035 | K39: 1.025 | L39: 1.02 | M39: 1.03 | N39: 1.2 | O39: =F39*H39*I39*J39*K39*L39*M39*N39 -> 0 | P39: =G39*H39*I39*J39*K39*L39*M39*N39 -> 0
B40: 101-0797 | C40: Проволока горячекатаная в мотках, диаметром 6,3-6,5 мм | D40: т | E40: 0,0002 0,0016 | F40: 0 | G40: 0 | H40: 1.052 | I40: 1.021 | J40: 1.035 | K40: 1.025 | L40: 1.02 | M40: 1.03 | N40: 1.2 | O40: =F40*H40*I40*J40*K40*L40*M40*N40 -> 0 | P40: =G40*H40*I40*J40*K40*L40*M40*N40 -> 0
B41: 101-1515 | C41: Электроды диаметром: 4 мм Э46 | D41: т | E41: 0,1 0,807 | F41: 0 | G41: 0 | H41: 1.052 | I41: 1.021 | J41: 1.035 | K41: 1.025 | L41: 1.02 | M41: 1.03 | N41: 1.2 | O41: =F41*H41*I41*J41*K41*L41*M41*N41 -> 0 | P41: =G41*H41*I41*J41*K41*L41*M41*N41 -> 0
B42: 101-1805 | C42: Гвозди строительные | D42: т | E42: 0,0008 0,0065 | F42: 0 | G42: 0 | H42: 1.052 | I42: 1.021 | J42: 1.035 | K42: 1.025 | L42: 1.02 | M42: 1.03 | N42: 1.2 | O42: =F42*H42*I42*J42*K42*L42*M42*N42 -> 0 | P42: =G42*H42*I42*J42*K42*L42*M42*N42 -> 0
B43: 101-2278 | C43: Пропан-бутан, смесь техническая | D43: кг | E43: 5 40,35 | F43: 0 | G43: 0 | H43: 1.052 | I43: 1.021 | J43: 1.035 | K43: 1.025 | L43: 1.02 | M43: 1.03 | N43: 1.2 | O43: =F43*H43*I43*J43*K43*L43*M43*N43 -> 0 | P43: =G43*H43*I43*J43*K43*L43*M43*N43 -> 0
B44: 101-2467 | C44: Растворитель марки: Р-4 | D44: т | E44: 0,0005 0,004 | F44: 0 | G44: 0 | H44: 1.052 | I44: 1.021 | J44: 1.035 | K44: 1.025 | L44: 1.02 | M44: 1.03 | N44: 1.2 | O44: =F44*H44*I44*J44*K44*L44*M44*N44 -> 0 | P44: =G44*H44*I44*J44*K44*L44*M44*N44 -> 0
B45: 102-0023 | C45: Бруски обрезные хвойных пород длиной: 4-6,5 м, шириной 75-150 мм, толщиной 40-75 мм, I сорта | D45: м3 | E45: 0,08 0,6456 | F45: 0 | G45: 0 | H45: 1.052 | I45: 1.021 | J45: 1.035 | K45: 1.025 | L45: 1.02 | M45: 1.03 | N45: 1.2 | O45: =F45*H45*I45*J45*K45*L45*M45*N45 -> 0 | P45: =G45*H45*I45*J45*K45*L45*M45*N45 -> 0
B46: 113-0021 | C46: Грунтовка: ГФ-021 красно-коричневая | D46: т | E46: 0,0026 0,021 | F46: 0 | G46: 0 | H46: 1.052 | I46: 1.021 | J46: 1.035 | K46: 1.025 | L46: 1.02 | M46: 1.03 | N46: 1.2 | O46: =F46*H46*I46*J46*K46*L46*M46*N46 -> 0 | P46: =G46*H46*I46*J46*K46*L46*M46*N46 -> 0
B47: 508-0097 | C47: Канат двойной свивки типа ТК, конструкции 6х19(1+6+12)+1 о.с., оцинкованный из проволок марки В, маркировочная группа: 1770 н/мм2, диаметром 5,5 мм | D47: 10 м | E47: 0,09 0,7263 | F47: 0 | G47: 0 | H47: 1.052 | I47: 1.021 | J47: 1.035 | K47: 1.025 | L47: 1.02 | M47: 1.03 | N47: 1.2 | O47: =F47*H47*I47*J47*K47*L47*M47*N47 -> 0 | P47: =G47*H47*I47*J47*K47*L47*M47*N47 -> 0
A48: 5 * | B48: ТССЦ-202-0017 | C48: Пути подкрановые, марка стали: С 255, крепления и упоры//Рельсовые комплекты | D48: т | H48: 1.052 | I48: 1.021 | J48: 1.035 | K48: 1.025 | L48: 1.02 | M48: 1.03 | N48: 1.2 | O48: =F48*H48*I48*J48*K48*L48*M48*N48 -> 0 | P48: =G48*H48*I48*J48*K48*L48*M48*N48 -> 0
A49: 6 * | B49: ТССЦ-202-0016 | C49: Пути подкрановые, марка стали: С 255, рельсы железнодорожные | D49: т | H49: 1.052 | I49: 1.021 | J49: 1.035 | K49: 1.025 | L49: 1.02 | M49: 1.03 | N49: 1.2 | O49: =F49*H49*I49*J49*K49*L49*M49*N49 -> 0 | P49: =G49*H49*I49*J49*K49*L49*M49*N49 -> 0
A50: Раздел 3. Рельсовый путь № 3 | F50: 0 | G50: 0 | H50: 1.052 | I50: 1.021 | J50: 1.035 | K50: 1.025 | L50: 1.02 | M50: 1.03 | N50: 1.2 | O50: =F50*H50*I50*J50*K50*L50*M50*N50 -> 0 | P50: =G50*H50*I50*J50*K50*L50*M50*N50 -> 0
A51: Раздел 3. Рельсовый путь № 3 | F51: 0 | G51: 0 | H51: 1.052 | I51: 1.021 | J51: 1.035 | K51: 1.025 | L51: 1.02 | M51: 1.03 | N51: 1.2 | O51: =F51*H51*I51*J51*K51*L51*M51*N51 -> 0 | P51: =G51*H51*I51*J51*K51*L51*M51*N51 -> 0
A52: 7 | B52: ТЕР09-03-005-02 | C52: Монтаж подкрановых путей: по металлическим подкрановым балкам для рельсов типа КР //вес 83,09 кг./м | D52: 100 м рельса в одну нитку | E52: 7.7722 | F52: 8185869.068 | G52: 144998.9573 | H52: 1.052 | I52: 1.021 | J52: 1.035 | K52: 1.025 | L52: 1.02 | M52: 1.03 | N52: 1.2 | O52: =F52*H52*I52*J52*K52*L52*M52*N52 -> 11759507.5 | P52: =G52*H52*I52*J52*K52*L52*M52*N52 -> 208299.9755
B53: 101-0309 | C53: Канаты пеньковые пропитанные | D53: т | E53: 0,0009 0,007 | F53: 0 | G53: 0 | H53: 1.052 | I53: 1.021 | J53: 1.035 | K53: 1.025 | L53: 1.02 | M53: 1.03 | N53: 1.2 | O53: =F53*H53*I53*J53*K53*L53*M53*N53 -> 0 | P53: =G53*H53*I53*J53*K53*L53*M53*N53 -> 0
B54: 101-0324 | C54: Кислород технический: газообразный | D54: м3 | E54: 16,58 128,9 | F54: 0 | G54: 0 | H54: 1.052 | I54: 1.021 | J54: 1.035 | K54: 1.025 | L54: 1.02 | M54: 1.03 | N54: 1.2 | O54: =F54*H54*I54*J54*K54*L54*M54*N54 -> 0 | P54: =G54*H54*I54*J54*K54*L54*M54*N54 -> 0
B55: 101-0797 | C55: Проволока горячекатаная в мотках, диаметром 6,3-6,5 мм | D55: т | E55: 0,0002 0,0016 | F55: 0 | G55: 0 | H55: 1.052 | I55: 1.021 | J55: 1.035 | K55: 1.025 | L55: 1.02 | M55: 1.03 | N55: 1.2 | O55: =F55*H55*I55*J55*K55*L55*M55*N55 -> 0 | P55: =G55*H55*I55*J55*K55*L55*M55*N55 -> 0
B56: 101-1515 | C56: Электроды диаметром: 4 мм Э46 | D56: т | E56: 0,1 0,7772 | F56: 0 | G56: 0 | H56: 1.052 | I56: 1.021 | J56: 1.035 | K56: 1.025 | L56: 1.02 | M56: 1.03 | N56: 1.2 | O56: =F56*H56*I56*J56*K56*L56*M56*N56 -> 0 | P56: =G56*H56*I56*J56*K56*L56*M56*N56 -> 0
B57: 101-1805 | C57: Гвозди строительные | D57: т | E57: 0,0008 0,0062 | F57: 0 | G57: 0 | H57: 1.052 | I57: 1.021 | J57: 1.035 | K57: 1.025 | L57: 1.02 | M57: 1.03 | N57: 1.2 | O57: =F57*H57*I57*J57*K57*L57*M57*N57 -> 0 | P57: =G57*H57*I57*J57*K57*L57*M57*N57 -> 0
B58: 101-2278 | C58: Пропан-бутан, смесь техническая | D58: кг | E58: 5 38,86 | F58: 0 | G58: 0 | H58: 1.052 | I58: 1.021 | J58: 1.035 | K58: 1.025 | L58: 1.02 | M58: 1.03 | N58: 1.2 | O58: =F58*H58*I58*J58*K58*L58*M58*N58 -> 0 | P58: =G58*H58*I58*J58*K58*L58*M58*N58 -> 0
B59: 101-2467 | C59: Растворитель марки: Р-4 | D59: т | E59: 0,0005 0,0039 | F59: 0 | G59: 0 | H59: 1.052 | I59: 1.021 | J59: 1.035 | K59: 1.025 | L59: 1.02 | M59: 1.03 | N59: 1.2 | O59: =F59*H59*I59*J59*K59*L59*M59*N59 -> 0 | P59: =G59*H59*I59*J59*K59*L59*M59*N59 -> 0
B60: 102-0023 | C60: Бруски обрезные хвойных пород длиной: 4-6,5 м, шириной 75-150 мм, толщиной 40-75 мм, I сорта | D60: м3 | E60: 0,08 0,6218 | F60: 0 | G60: 0 | H60: 1.052 | I60: 1.021 | J60: 1.035 | K60: 1.025 | L60: 1.02 | M60: 1.03 | N60: 1.2 | O60: =F60*H60*I60*J60*K60*L60*M60*N60 -> 0 | P60: =G60*H60*I60*J60*K60*L60*M60*N60 -> 0
B61: 113-0021 | C61: Грунтовка: ГФ-021 красно-коричневая | D61: т | E61: 0,0026 0,0202 | F61: 0 | G61: 0 | H61: 1.052 | I61: 1.021 | J61: 1.035 | K61: 1.025 | L61: 1.02 | M61: 1.03 | N61: 1.2 | O61: =F61*H61*I61*J61*K61*L61*M61*N61 -> 0 | P61: =G61*H61*I61*J61*K61*L61*M61*N61 -> 0
B62: 508-0097 | C62: Канат двойной свивки типа ТК, конструкции 6х19(1+6+12)+1 о.с., оцинкованный из проволок марки В, маркировочная группа: 1770 н/мм2, диаметром 5,5 мм | D62: 10 м | E62: 0,09 0,6995 | F62: 0 | G62: 0 | H62: 1.052 | I62: 1.021 | J62: 1.035 | K62: 1.025 | L62: 1.02 | M62: 1.03 | N62: 1.2 | O62: =F62*H62*I62*J62*K62*L62*M62*N62 -> 0 | P62: =G62*H62*I62*J62*K62*L62*M62*N62 -> 0
A63: 8 * | B63: ТССЦ-202-0017 | C63: Пути подкрановые, марка стали: С 255, крепления и упоры//Рельсовые комплекты | D63: т | H63: 1.052 | I63: 1.021 | J63: 1.035 | K63: 1.025 | L63: 1.02 | M63: 1.03 | N63: 1.2 | O63: =F63*H63*I63*J63*K63*L63*M63*N63 -> 0 | P63: =G63*H63*I63*J63*K63*L63*M63*N63 -> 0
A64: 9 * | B64: ТССЦ-202-0016 | C64: Пути подкрановые, марка стали: С 255, рельсы железнодорожные | D64: т | H64: 1.052 | I64: 1.021 | J64: 1.035 | K64: 1.025 | L64: 1.02 | M64: 1.03 | N64: 1.2 | O64: =F64*H64*I64*J64*K64*L64*M64*N64 -> 0 | P64: =G64*H64*I64*J64*K64*L64*M64*N64 -> 0
A65: 10 | B65: ТЕР46-08-012-01 | C65: Установка анкеров в отверстия глубиной 100 мм с применением смесей серии MASTERFLOW, диаметр анкера: до 8 мм | D65: 100 шт. | E65: 15.46 | F65: 166817.8758 | G65: 0 | H65: 1.052 | I65: 1.021 | J65: 1.035 | K65: 1.025 | L65: 1.02 | M65: 1.03 | N65: 1.2 | O65: =F65*H65*I65*J65*K65*L65*M65*N65 -> 239644.2022 | P65: =G65*H65*I65*J65*K65*L65*M65*N65 -> 0
A66: 11 | B66: ТЕР46-08-012-06 | C66: На каждые 10 мм изменения глубины отверстия добавлять (уменьшать) к расценке: 46-08-012-01 | D66: 100 шт. | E66: 15.46 | F66: 428208.9302 | G66: 0 | H66: 1.052 | I66: 1.021 | J66: 1.035 | K66: 1.025 | L66: 1.02 | M66: 1.03 | N66: 1.2 | O66: =F66*H66*I66*J66*K66*L66*M66*N66 -> 615148.6281 | P66: =G66*H66*I66*J66*K66*L66*M66*N66 -> 0
A67: 12 * | B67: ТССЦ-509-2631 | C67: Капсула с клеевым составом Hilti HVU-TZ M20 | D67: шт. | H67: 1.052 | I67: 1.021 | J67: 1.035 | K67: 1.025 | L67: 1.02 | M67: 1.03 | N67: 1.2 | O67: =F67*H67*I67*J67*K67*L67*M67*N67 -> 0 | P67: =G67*H67*I67*J67*K67*L67*M67*N67 -> 0
A68: 13 * | B68: ТССЦ-509-4616 | C68: Шпилька анкерная Hilti: HIT-V-5,8 М16х300 (HAS) для использования с химическими анкерами HIT | D68: шт. | H68: 1.052 | I68: 1.021 | J68: 1.035 | K68: 1.025 | L68: 1.02 | M68: 1.03 | N68: 1.2 | O68: =F68*H68*I68*J68*K68*L68*M68*N68 -> 0 | P68: =G68*H68*I68*J68*K68*L68*M68*N68 -> 0
A69: Раздел 4. Подливка из безусадочного мелкозернистого бетона | F69: 0 | G69: 0 | H69: 1.052 | I69: 1.021 | J69: 1.035 | K69: 1.025 | L69: 1.02 | M69: 1.03 | N69: 1.2 | O69: =F69*H69*I69*J69*K69*L69*M69*N69 -> 0 | P69: =G69*H69*I69*J69*K69*L69*M69*N69 -> 0
A70: Рельсовый путь № 3 длинна 388,61 толщ (разрез 15-15 лист 424) 54 мм ширина (разрез 15-15 лист 424) - 400 мм | F70: 0 | G70: 0 | H70: 1.052 | I70: 1.021 | J70: 1.035 | K70: 1.025 | L70: 1.02 | M70: 1.03 | N70: 1.2 | O70: =F70*H70*I70*J70*K70*L70*M70*N70 -> 0 | P70: =G70*H70*I70*J70*K70*L70*M70*N70 -> 0
A71: Рельсовый путь № 2 длинна 403,510 м толщ (разрез 3-3 лист 424) 130 мм ширина (разрез 3-3 лист 424) - 600 мм | F71: 0 | G71: 0 | H71: 1.052 | I71: 1.021 | J71: 1.035 | K71: 1.025 | L71: 1.02 | M71: 1.03 | N71: 1.2 | O71: =F71*H71*I71*J71*K71*L71*M71*N71 -> 0 | P71: =G71*H71*I71*J71*K71*L71*M71*N71 -> 0
A72: Рельсовый путь № 1 длинна 384,745 м толщ (разрез 1-1 лист 424) 150 мм ширина (разрез 1-1 лист 424) - 600 мм | F72: 0 | G72: 0 | H72: 1.052 | I72: 1.021 | J72: 1.035 | K72: 1.025 | L72: 1.02 | M72: 1.03 | N72: 1.2 | O72: =F72*H72*I72*J72*K72*L72*M72*N72 -> 0 | P72: =G72*H72*I72*J72*K72*L72*M72*N72 -> 0
A73: Раздел 5. Крепление опорных деталей. Лист 282.2, 282.3 | F73: 0 | G73: 0 | H73: 1.052 | I73: 1.021 | J73: 1.035 | K73: 1.025 | L73: 1.02 | M73: 1.03 | N73: 1.2 | O73: =F73*H73*I73*J73*K73*L73*M73*N73 -> 0 | P73: =G73*H73*I73*J73*K73*L73*M73*N73 -> 0
A74: Раздел 5. Крепление опорных деталей. Лист 424,.2, 424.3 | F74: 0 | G74: 0 | H74: 1.052 | I74: 1.021 | J74: 1.035 | K74: 1.025 | L74: 1.02 | M74: 1.03 | N74: 1.2 | O74: =F74*H74*I74*J74*K74*L74*M74*N74 -> 0 | P74: =G74*H74*I74*J74*K74*L74*M74*N74 -> 0
A75: Крепление стоек к ростверку | F75: 0 | G75: 0 | H75: 1.052 | I75: 1.021 | J75: 1.035 | K75: 1.025 | L75: 1.02 | M75: 1.03 | N75: 1.2 | O75: =F75*H75*I75*J75*K75*L75*M75*N75 -> 0 | P75: =G75*H75*I75*J75*K75*L75*M75*N75 -> 0
A76: 14 | B76: ТЕР46-08-012-01 | C76: Установка анкеров в отверстия глубиной 100 мм с применением смесей серии MASTERFLOW, диаметр анкера: до 8 мм | D76: 100 шт. | E76: 3.42 | F76: 36902.40171 | G76: 0 | H76: 1.052 | I76: 1.021 | J76: 1.035 | K76: 1.025 | L76: 1.02 | M76: 1.03 | N76: 1.2 | O76: =F76*H76*I76*J76*K76*L76*M76*N76 -> 53012.58377 | P76: =G76*H76*I76*J76*K76*L76*M76*N76 -> 0
A77: 15 | B77: ТЕР46-08-012-06 | C77: На каждые 10 мм изменения глубины отверстия добавлять (уменьшать) к расценке: 46-08-012-01 | D77: 100 шт. | E77: 3.42 | F77: 12628.81553 | G77: 0 | H77: 1.052 | I77: 1.021 | J77: 1.035 | K77: 1.025 | L77: 1.02 | M77: 1.03 | N77: 1.2 | O77: =F77*H77*I77*J77*K77*L77*M77*N77 -> 18142.07505 | P77: =G77*H77*I77*J77*K77*L77*M77*N77 -> 0
A78: 16 * | B78: ТССЦ-509-2631 | C78: Капсула с клеевым составом Hilti HVU-TZ M20 | D78: шт. | H78: 1.052 | I78: 1.021 | J78: 1.035 | K78: 1.025 | L78: 1.02 | M78: 1.03 | N78: 1.2 | O78: =F78*H78*I78*J78*K78*L78*M78*N78 -> 0 | P78: =G78*H78*I78*J78*K78*L78*M78*N78 -> 0
A79: 17 * | B79: ТССЦ-509-4616 | C79: Шпилька анкерная Hilti: HIT-V-5,8 М16х300 (HAS) для использования с химическими анкерами HIT | D79: шт. | H79: 1.052 | I79: 1.021 | J79: 1.035 | K79: 1.025 | L79: 1.02 | M79: 1.03 | N79: 1.2 | O79: =F79*H79*I79*J79*K79*L79*M79*N79 -> 0 | P79: =G79*H79*I79*J79*K79*L79*M79*N79 -> 0
A80: Крепление тормозных упоров крацер-крана к роствергу | F80: 0 | G80: 0 | H80: 1.052 | I80: 1.021 | J80: 1.035 | K80: 1.025 | L80: 1.02 | M80: 1.03 | N80: 1.2 | O80: =F80*H80*I80*J80*K80*L80*M80*N80 -> 0 | P80: =G80*H80*I80*J80*K80*L80*M80*N80 -> 0
A81: 18 | B81: ТЕР46-08-012-05 | C81: Установка анкеров в отверстия глубиной 100 мм с применением смесей серии MASTERFLOW, диаметр анкера: 20 мм и более | D81: 100 шт. | E81: 0.24 | F81: 6213.130154 | G81: 0 | H81: 1.052 | I81: 1.021 | J81: 1.035 | K81: 1.025 | L81: 1.02 | M81: 1.03 | N81: 1.2 | O81: =F81*H81*I81*J81*K81*L81*M81*N81 -> 8925.545968 | P81: =G81*H81*I81*J81*K81*L81*M81*N81 -> 0
A82: 19 | B82: ТЕР46-08-012-10 | C82: На каждые 10 мм изменения глубины отверстия добавлять (уменьшать) к расценке: 46-08-012-05 | D82: 100 шт. | E82: 0.24 | F82: 22554.0216 | G82: 0 | H82: 1.052 | I82: 1.021 | J82: 1.035 | K82: 1.025 | L82: 1.02 | M82: 1.03 | N82: 1.2 | O82: =F82*H82*I82*J82*K82*L82*M82*N82 -> 32400.24779 | P82: =G82*H82*I82*J82*K82*L82*M82*N82 -> 0
A83: 20 * | B83: ТССЦ-509-4614 | C83: Анкер химический (капсула с клеевым составом) Hilti HVU М24/210 | D83: шт. | H83: 1.052 | I83: 1.021 | J83: 1.035 | K83: 1.025 | L83: 1.02 | M83: 1.03 | N83: 1.2 | O83: =F83*H83*I83*J83*K83*L83*M83*N83 -> 0 | P83: =G83*H83*I83*J83*K83*L83*M83*N83 -> 0
A84: 21 * | B84: ТССЦ-509-4617 | C84: Шпилька анкерная Hilti: HIT-V-5,8 М24х450 (HAS) для использования с химическими анкерами HIT | D84: шт. | H84: 1.052 | I84: 1.021 | J84: 1.035 | K84: 1.025 | L84: 1.02 | M84: 1.03 | N84: 1.2 | O84: =F84*H84*I84*J84*K84*L84*M84*N84 -> 0 | P84: =G84*H84*I84*J84*K84*L84*M84*N84 -> 0
A85: Крепление крацер-крана в сервесном положении | F85: 0 | G85: 0 | H85: 1.052 | I85: 1.021 | J85: 1.035 | K85: 1.025 | L85: 1.02 | M85: 1.03 | N85: 1.2 | O85: =F85*H85*I85*J85*K85*L85*M85*N85 -> 0 | P85: =G85*H85*I85*J85*K85*L85*M85*N85 -> 0
A86: 22 | B86: ТЕР46-08-012-01 | C86: Установка анкеров в отверстия глубиной 100 мм с применением смесей серии MASTERFLOW, диаметр анкера: до 8 мм | D86: 100 шт. | E86: 0.24 | F86: 2588.684517 | G86: 0 | H86: 1.052 | I86: 1.021 | J86: 1.035 | K86: 1.025 | L86: 1.02 | M86: 1.03 | N86: 1.2 | O86: =F86*H86*I86*J86*K86*L86*M86*N86 -> 3718.805511 | P86: =G86*H86*I86*J86*K86*L86*M86*N86 -> 0
A87: 23 | B87: ТЕР46-08-012-06 | C87: На каждые 10 мм изменения глубины отверстия добавлять (уменьшать) к расценке: 46-08-012-01 | D87: 100 шт. | E87: 0.24 | F87: 6646.971843 | G87: 0 | H87: 1.052 | I87: 1.021 | J87: 1.035 | K87: 1.025 | L87: 1.02 | M87: 1.03 | N87: 1.2 | O87: =F87*H87*I87*J87*K87*L87*M87*N87 -> 9548.786403 | P87: =G87*H87*I87*J87*K87*L87*M87*N87 -> 0
A88: 24 * | B88: ТССЦ-509-2631 | C88: Капсула с клеевым составом Hilti HVU-TZ M20 | D88: шт. | H88: 1.052 | I88: 1.021 | J88: 1.035 | K88: 1.025 | L88: 1.02 | M88: 1.03 | N88: 1.2 | O88: =F88*H88*I88*J88*K88*L88*M88*N88 -> 0 | P88: =G88*H88*I88*J88*K88*L88*M88*N88 -> 0
A89: 25 * | B89: ТССЦ-509-4616 | C89: Шпилька анкерная Hilti: HIT-V-5,8 М16х300 (HAS) для использования с химическими анкерами HIT | D89: шт. | H89: 1.052 | I89: 1.021 | J89: 1.035 | K89: 1.025 | L89: 1.02 | M89: 1.03 | N89: 1.2 | O89: =F89*H89*I89*J89*K89*L89*M89*N89 -> 0 | P89: =G89*H89*I89*J89*K89*L89*M89*N89 -> 0
A90: Крепление стоек подъемной карентки к роствергу | F90: 0 | G90: 0 | H90: 1.052 | I90: 1.021 | J90: 1.035 | K90: 1.025 | L90: 1.02 | M90: 1.03 | N90: 1.2 | O90: =F90*H90*I90*J90*K90*L90*M90*N90 -> 0 | P90: =G90*H90*I90*J90*K90*L90*M90*N90 -> 0
A91: 26 | B91: ТЕР46-08-012-01 | C91: Установка анкеров в отверстия глубиной 100 мм с применением смесей серии MASTERFLOW, диаметр анкера: до 8 мм | D91: 100 шт. | E91: 0.16 | F91: 1725.310824 | G91: 0 | H91: 1.052 | I91: 1.021 | J91: 1.035 | K91: 1.025 | L91: 1.02 | M91: 1.03 | N91: 1.2 | O91: =F91*H91*I91*J91*K91*L91*M91*N91 -> 2478.51577 | P91: =G91*H91*I91*J91*K91*L91*M91*N91 -> 0
A92: 27 | B92: ТЕР46-08-012-06 | C92: На каждые 10 мм изменения глубины отверстия добавлять (уменьшать) к расценке: 46-08-012-01 | D92: 100 шт. | E92: 0.16 | F92: 4430.356854 | G92: 0 | H92: 1.052 | I92: 1.021 | J92: 1.035 | K92: 1.025 | L92: 1.02 | M92: 1.03 | N92: 1.2 | O92: =F92*H92*I92*J92*K92*L92*M92*N92 -> 6364.481795 | P92: =G92*H92*I92*J92*K92*L92*M92*N92 -> 0
A93: 28 * | B93: ТССЦ-509-4614 | C93: Анкер химический (капсула с клеевым составом) Hilti HVU М24/210 | D93: шт. | H93: 1.052 | I93: 1.021 | J93: 1.035 | K93: 1.025 | L93: 1.02 | M93: 1.03 | N93: 1.2 | O93: =F93*H93*I93*J93*K93*L93*M93*N93 -> 0 | P93: =G93*H93*I93*J93*K93*L93*M93*N93 -> 0
A94: 29 * | B94: ТССЦ-509-4617 | C94: Шпилька анкерная Hilti: HIT-V-5,8 М24х450 (HAS) для использования с химическими анкерами HIT | D94: шт. | H94: 1.052 | I94: 1.021 | J94: 1.035 | K94: 1.025 | L94: 1.02 | M94: 1.03 | N94: 1.2 | O94: =F94*H94*I94*J94*K94*L94*M94*N94 -> 0 | P94: =G94*H94*I94*J94*K94*L94*M94*N94 -> 0
A95: 30 | B95: ТЕР46-03-014-01 | C95: Сверление вертикальных отверстий в железобетонных конструкциях полов перфоратором глубиной 200 мм диаметром: 20 мм | D95: 100 отверстий | E95: 0.08 | F95: 1067.365481 | G95: 0 | H95: 1.052 | I95: 1.021 | J95: 1.035 | K95: 1.025 | L95: 1.02 | M95: 1.03 | N95: 1.2 | O95: =F95*H95*I95*J95*K95*L95*M95*N95 -> 1533.336567 | P95: =G95*H95*I95*J95*K95*L95*M95*N95 -> 0
A96: 31 | B96: ТЕР46-03-014-14 | C96: На каждые 10 мм изменения глубины сверления добавлять или исключать: к расценке 46-03-014-01 | D96: 100 отверстий | E96: -0.08 | F96: -439.5879369 | G96: 0 | H96: 1.052 | I96: 1.021 | J96: 1.035 | K96: 1.025 | L96: 1.02 | M96: 1.03 | N96: 1.2 | O96: =F96*H96*I96*J96*K96*L96*M96*N96 -> -631.4952754 | P96: =G96*H96*I96*J96*K96*L96*M96*N96 -> 0
A97: 32 | B97: ТЕР06-01-015-03 | C97: Установка анкерных болтов: при бетонировании со связями из арматуры | D97: 1 т | E97: 0.002317 | F97: 499.5356644 | G97: 277.6443156 | H97: 1.052 | I97: 1.021 | J97: 1.035 | K97: 1.025 | L97: 1.02 | M97: 1.03 | N97: 1.2 | O97: =F97*H97*I97*J97*K97*L97*M97*N97 -> 717.6138958 | P97: =G97*H97*I97*J97*K97*L97*M97*N97 -> 398.8532414
B98: 101-1513 | C98: Электроды диаметром: 4 мм Э42 | D98: т | E98: 0,002 0 | F98: 0 | G98: 0 | H98: 1.052 | I98: 1.021 | J98: 1.035 | K98: 1.025 | L98: 1.02 | M98: 1.03 | N98: 1.2 | O98: =F98*H98*I98*J98*K98*L98*M98*N98 -> 0 | P98: =G98*H98*I98*J98*K98*L98*M98*N98 -> 0
B99: 201-0798 | C99: Кондуктор инвентарный металлический | D99: шт. | E99: 0,01 0 | F99: 0 | G99: 0 | H99: 1.052 | I99: 1.021 | J99: 1.035 | K99: 1.025 | L99: 1.02 | M99: 1.03 | N99: 1.2 | O99: =F99*H99*I99*J99*K99*L99*M99*N99 -> 0 | P99: =G99*H99*I99*J99*K99*L99*M99*N99 -> 0
B100: 204-0005 | C100: Горячекатаная арматурная сталь гладкая класса А-I, диаметром: 14 мм | D100: т | E100: 0,09 0,0002 | F100: 0 | G100: 0 | H100: 1.052 | I100: 1.021 | J100: 1.035 | K100: 1.025 | L100: 1.02 | M100: 1.03 | N100: 1.2 | O100: =F100*H100*I100*J100*K100*L100*M100*N100 -> 0 | P100: =G100*H100*I100*J100*K100*L100*M100*N100 -> 0
B101: 204-0059 | C101: Анкерные детали из прямых или гнутых круглых стержней с резьбой (в комплекте с шайбами и гайками или без них),: поставляемые отдельно | D101: т | E101: 1 0,0023 | F101: 0 | G101: 0 | H101: 1.052 | I101: 1.021 | J101: 1.035 | K101: 1.025 | L101: 1.02 | M101: 1.03 | N101: 1.2 | O101: =F101*H101*I101*J101*K101*L101*M101*N101 -> 0 | P101: =G101*H101*I101*J101*K101*L101*M101*N101 -> 0
A102: Крепление тормазных упоров мобильного бункера | F102: 0 | G102: 0 | H102: 1.052 | I102: 1.021 | J102: 1.035 | K102: 1.025 | L102: 1.02 | M102: 1.03 | N102: 1.2 | O102: =F102*H102*I102*J102*K102*L102*M102*N102 -> 0 | P102: =G102*H102*I102*J102*K102*L102*M102*N102 -> 0
A103: 33 | B103: ТЕР46-08-012-01 | C103: Установка анкеров в отверстия глубиной 100 мм с применением смесей серии MASTERFLOW, диаметр анкера: до 8 мм | D103: 100 шт. | E103: 0.18 | F103: 1942.231669 | G103: 0 | H103: 1.052 | I103: 1.021 | J103: 1.035 | K103: 1.025 | L103: 1.02 | M103: 1.03 | N103: 1.2 | O103: =F103*H103*I103*J103*K103*L103*M103*N103 -> 2790.135988 | P103: =G103*H103*I103*J103*K103*L103*M103*N103 -> 0
A104: 34 | B104: ТЕР46-08-012-06 | C104: На каждые 10 мм изменения глубины отверстия добавлять (уменьшать) к расценке: 46-08-012-01 | D104: 100 шт. | E104: 0.18 | F104: 4984.869742 | G104: 0 | H104: 1.052 | I104: 1.021 | J104: 1.035 | K104: 1.025 | L104: 1.02 | M104: 1.03 | N104: 1.2 | O104: =F104*H104*I104*J104*K104*L104*M104*N104 -> 7161.073875 | P104: =G104*H104*I104*J104*K104*L104*M104*N104 -> 0
A105: 35 * | B105: ТССЦ-509-4614 | C105: Анкер химический (капсула с клеевым составом) Hilti HVU М24/210 | D105: шт. | H105: 1.052 | I105: 1.021 | J105: 1.035 | K105: 1.025 | L105: 1.02 | M105: 1.03 | N105: 1.2 | O105: =F105*H105*I105*J105*K105*L105*M105*N105 -> 0 | P105: =G105*H105*I105*J105*K105*L105*M105*N105 -> 0
A106: 36 * | B106: ТССЦ-509-4617 | C106: Шпилька анкерная Hilti: HIT-V-5,8 М24х450 (HAS) для использования с химическими анкерами HIT | D106: шт. | H106: 1.052 | I106: 1.021 | J106: 1.035 | K106: 1.025 | L106: 1.02 | M106: 1.03 | N106: 1.2 | O106: =F106*H106*I106*J106*K106*L106*M106*N106 -> 0 | P106: =G106*H106*I106*J106*K106*L106*M106*N106 -> 0
A107: 37 | B107: ТЕР46-03-014-01 | C107: Сверление вертикальных отверстий в железобетонных конструкциях полов перфоратором глубиной 200 мм диаметром: 20 мм | D107: 100 отверстий | E107: 0.18 | F107: 2403.368034 | G107: 0 | H107: 1.052 | I107: 1.021 | J107: 1.035 | K107: 1.025 | L107: 1.02 | M107: 1.03 | N107: 1.2 | O107: =F107*H107*I107*J107*K107*L107*M107*N107 -> 3452.586914 | P107: =G107*H107*I107*J107*K107*L107*M107*N107 -> 0
A108: 38 | B108: ТЕР46-03-014-14 | C108: На каждые 10 мм изменения глубины сверления добавлять или исключать: к расценке 46-03-014-01 | D108: 100 отверстий | E108: -0.18 | F108: -988.3545771 | G108: 0 | H108: 1.052 | I108: 1.021 | J108: 1.035 | K108: 1.025 | L108: 1.02 | M108: 1.03 | N108: 1.2 | O108: =F108*H108*I108*J108*K108*L108*M108*N108 -> -1419.832515 | P108: =G108*H108*I108*J108*K108*L108*M108*N108 -> 0
A109: 39 | B109: ТЕР06-01-015-03 | C109: Установка анкерных болтов: при бетонировании со связями из арматуры | D109: 1 т | E109: 0.004086 | F109: 880.8566512 | G109: 489.6233874 | H109: 1.052 | I109: 1.021 | J109: 1.035 | K109: 1.025 | L109: 1.02 | M109: 1.03 | N109: 1.2 | O109: =F109*H109*I109*J109*K109*L109*M109*N109 -> 1265.405092 | P109: =G109*H109*I109*J109*K109*L109*M109*N109 -> 703.3742965
B110: 101-1513 | C110: Электроды диаметром: 4 мм Э42 | D110: т | E110: 0,002 0 | F110: 0 | G110: 0 | H110: 1.052 | I110: 1.021 | J110: 1.035 | K110: 1.025 | L110: 1.02 | M110: 1.03 | N110: 1.2 | O110: =F110*H110*I110*J110*K110*L110*M110*N110 -> 0 | P110: =G110*H110*I110*J110*K110*L110*M110*N110 -> 0
B111: 201-0798 | C111: Кондуктор инвентарный металлический | D111: шт. | E111: 0,01 0 | F111: 0 | G111: 0 | H111: 1.052 | I111: 1.021 | J111: 1.035 | K111: 1.025 | L111: 1.02 | M111: 1.03 | N111: 1.2 | O111: =F111*H111*I111*J111*K111*L111*M111*N111 -> 0 | P111: =G111*H111*I111*J111*K111*L111*M111*N111 -> 0
B112: 204-0005 | C112: Горячекатаная арматурная сталь гладкая класса А-I, диаметром: 14 мм | D112: т | E112: 0,09 0,0004 | F112: 0 | G112: 0 | H112: 1.052 | I112: 1.021 | J112: 1.035 | K112: 1.025 | L112: 1.02 | M112: 1.03 | N112: 1.2 | O112: =F112*H112*I112*J112*K112*L112*M112*N112 -> 0 | P112: =G112*H112*I112*J112*K112*L112*M112*N112 -> 0
B113: 204-0059 | C113: Анкерные детали из прямых или гнутых круглых стержней с резьбой (в комплекте с шайбами и гайками или без них),: поставляемые отдельно | D113: т | E113: 1 0,0041 | F113: 0 | G113: 0 | H113: 1.052 | I113: 1.021 | J113: 1.035 | K113: 1.025 | L113: 1.02 | M113: 1.03 | N113: 1.2 | O113: =F113*H113*I113*J113*K113*L113*M113*N113 -> 0 | P113: =G113*H113*I113*J113*K113*L113*M113*N113 -> 0
A114: Крепление стоек орграждения к роствергу | F114: 0 | G114: 0 | H114: 1.052 | I114: 1.021 | J114: 1.035 | K114: 1.025 | L114: 1.02 | M114: 1.03 | N114: 1.2 | O114: =F114*H114*I114*J114*K114*L114*M114*N114 -> 0 | P114: =G114*H114*I114*J114*K114*L114*M114*N114 -> 0
A115: 40 | B115: ТЕР46-08-012-01 | C115: Установка анкеров в отверстия глубиной 100 мм с применением смесей серии MASTERFLOW, диаметр анкера: до 8 мм | D115: 100 шт. | E115: 60 | F115: 647418.218 | G115: 0 | H115: 1.052 | I115: 1.021 | J115: 1.035 | K115: 1.025 | L115: 1.02 | M115: 1.03 | N115: 1.2 | O115: =F115*H115*I115*J115*K115*L115*M115*N115 -> 930056.3358 | P115: =G115*H115*I115*J115*K115*L115*M115*N115 -> 0
A116: 41 | B116: ТЕР46-08-012-06 | C116: На каждые 10 мм изменения глубины отверстия добавлять (уменьшать) к расценке: 46-08-012-01 | D116: 100 шт. | E116: 60 | F116: 553958.3748 | G116: 0 | H116: 1.052 | I116: 1.021 | J116: 1.035 | K116: 1.025 | L116: 1.02 | M116: 1.03 | N116: 1.2 | O116: =F116*H116*I116*J116*K116*L116*M116*N116 -> 795795.4874 | P116: =G116*H116*I116*J116*K116*L116*M116*N116 -> 0
A117: 42 * | B117: ТССЦ-509-2631 | C117: Капсула с клеевым составом Hilti HVU-TZ M20 | D117: шт. | H117: 1.052 | I117: 1.021 | J117: 1.035 | K117: 1.025 | L117: 1.02 | M117: 1.03 | N117: 1.2 | O117: =F117*H117*I117*J117*K117*L117*M117*N117 -> 0 | P117: =G117*H117*I117*J117*K117*L117*M117*N117 -> 0
A118: 43 * | B118: ТССЦ-509-4616 | C118: Шпилька анкерная Hilti: HIT-V-5,8 М16х300 (HAS) для использования с химическими анкерами HIT | D118: шт. | H118: 1.052 | I118: 1.021 | J118: 1.035 | K118: 1.025 | L118: 1.02 | M118: 1.03 | N118: 1.2 | O118: =F118*H118*I118*J118*K118*L118*M118*N118 -> 0 | P118: =G118*H118*I118*J118*K118*L118*M118*N118 -> 0
F119: =SUM(F22:F118) -> 26690497.58 | G119: =SUM(G22:G118) -> 439881.5271
